bitfinex/quotes_BTCUSD_20250803
["timestamp","ask_amount","ask_price","bid_price","bid_amount"]
[1754248983626,0.60432885,114810.0,114800.0,0.21699933]
[1754248984058,0.60432885,114810.0,114800.0,0.21199933]
[1754248984257,0.07898079,114820.0,114800.0,0.14498933]
[1754248984479,0.62808386,114810.0,114800.0,0.14498933]
[1754248984678,0.62579526,114810.0,114800.0,0.14498933]
[1754248985303,0.0296,114810.0,114800.0,0.14498933]
[1754248985510,0.62579526,114810.0,114800.0,0.14971539]
[1754248985918,0.62679526,114810.0,114800.0,0.14971539]
[1754248986115,0.62679526,114810.0,114800.0,0.14171539]
[1754248987366,0.59719526,114810.0,114800.0,0.00563539]
[1754248987775,0.59719526,114810.0,114800.0,0.14163539]
[1754248988836,0.52794875,114810.0,114800.0,0.14163539]
[1754248989038,0.55754875,114810.0,114800.0,0.14163539]
[1754248989459,0.52794875,114810.0,114800.0,0.14163539]
[1754248990501,0.52794875,114810.0,114800.0,0.14155539]
[1754248990721,0.001,114810.0,114800.0,0.30150593]
[1754248990943,0.59719526,114810.0,114800.0,0.29432823]
[1754248991585,0.59619526,114810.0,114800.0,0.29432823]
[1754248992005,0.59619526,114810.0,114800.0,0.29632823]
[1754248992670,0.59619526,114810.0,114800.0,0.29832823]
[1754248993778,0.59619526,114810.0,114800.0,0.32516105]
[1754248996337,0.60436193,114810.0,114800.0,0.32516105]
[1754248998233,0.60436193,114810.0,114800.0,0.32016105]
[1754249000902,0.60436193,114810.0,114800.0,0.31216105]
[1754249002012,0.00816667,114810.0,114800.0,0.38287303]
[1754249002222,0.02993177,114820.0,114800.0,0.43287303]
[1754249002422,0.63429359,114820.0,114810.0,0.15805035]
[1754249002625,0.63429359,114820.0,114810.0,0.2036384]
[1754249002828,0.63429359,114820.0,114810.0,0.20146089]
[1754249003901,0.63429359,114820.0,114810.0,0.20246089]
[1754249004953,0.03809833,114820.0,114810.0,0.20246089]
[1754249005381,0.02993177,114820.0,114810.0,0.19746089]
[1754249006265,0.02993177,114820.0,114810.0,0.19846089]
[1754249006697,0.59619526,114830.0,114810.0,0.19846089]
[1754249006919,0.59619526,114830.0,114820.0,0.13761732]
[1754249006920,0.60435948,114830.0,114820.0,0.13761732]
[1754249007103,0.60435948,114830.0,114820.0,0.23836514]
[1754249007437,0.60435948,114830.0,114820.0,0.23618782]
[1754249007604,0.60413051,114830.0,114820.0,0.23618782]
[1754249007993,0.60413051,114830.0,114820.0,0.22818782]
[1754249008241,0.60413051,114830.0,114820.0,0.22918782]
[1754249009638,0.60413051,114830.0,114820.0,0.23018782]
[1754249009858,0.59619526,114830.0,114820.0,0.23018782]
[1754249010650,0.59619526,114830.0,114820.0,0.16294782]
[1754249011509,0.59619526,114830.0,114820.0,0.22718782]
[1754249012340,0.59619526,114830.0,114820.0,0.22218782]
[1754249012570,0.01363436,114840.0,114820.0,0.22218782]
[1754249012779,0.59619526,114830.0,114820.0,0.22218782]
[1754249013397,0.59619526,114830.0,114820.0,0.22118782]
[1754249013816,0.59619526,114830.0,114820.0,0.22018782]
[1754249014234,0.59619526,114830.0,114820.0,0.22118782]
[1754249015146,0.59619526,114830.0,114820.0,0.21318782]
[1754249015360,0.59619526,114830.0,114820.0,0.13628]
[1754249015791,0.59619526,114830.0,114820.0,0.13728]
[1754249016024,0.742488,114840.0,114820.0,0.13628]
[1754249016269,0.59848386,114830.0,114820.0,0.13528]
[1754249016474,0.59619526,114830.0,114820.0,0.22171128]
[1754249019458,0.59619526,114830.0,114820.0,0.21671128]
[1754249022117,0.59619526,114830.0,114820.0,0.20871128]
[1754249023645,0.59619526,114830.0,114820.0,0.21186128]
[1754249026467,0.59619526,114830.0,114820.0,0.20686128]
[1754249028608,0.59619526,114830.0,114820.0,0.22458128]
[1754249029072,0.59619526,114830.0,114820.0,0.08958128]
[1754249029281,0.59619526,114830.0,114820.0,0.21650128]
[1754249030053,0.59676526,114840.0,114820.0,0.21855128]
[1754249030306,0.59848386,114830.0,114820.0,0.21855128]
[1754249030516,0.59619526,114830.0,114820.0,0.21855128]
[1754249031320,0.59619526,114830.0,114820.0,0.21851128]
[1754249033687,0.60982978,114830.0,114820.0,0.21351128]
[1754249034175,0.01363452,114830.0,114820.0,0.21351128]
[1754249034380,0.60982978,114830.0,114820.0,0.21351128]
[1754249036291,0.60982978,114830.0,114820.0,0.20551128]
[1754249037065,0.01363452,114830.0,114820.0,0.20551128]
[1754249037209,0.59619526,114830.0,114820.0,0.20551128]
[1754249038053,0.59619526,114830.0,114820.0,0.20651128]
[1754249039185,0.59619526,114830.0,114820.0,0.20751128]
[1754249039393,0.59619526,114840.0,114820.0,0.29614412]
[1754249039587,0.59619526,114840.0,114830.0,0.06596]
[1754249039812,0.59619526,114840.0,114830.0,0.06801]
[1754249040133,0.35744902,114870.0,114830.0,0.09958141]
[1754249040350,0.60982865,114860.0,114840.0,0.20072]
[1754249040559,0.94982865,114860.0,114850.0,0.00205]
[1754249040766,0.94982865,114860.0,114850.0,0.06801]
[1754249040982,0.94982865,114860.0,114850.0,0.09396833]
[1754249041211,0.94982865,114860.0,114850.0,0.06801]
[1754249041429,0.60982865,114860.0,114850.0,0.09010958]
[1754249041669,0.60982865,114860.0,114850.0,0.09058412]
[1754249042516,0.01363339,114860.0,114850.0,0.09058412]
[1754249042710,0.60982865,114860.0,114850.0,0.09058412]
[1754249043171,0.60982865,114860.0,114850.0,0.09158412]
[1754249043394,0.60982865,114860.0,114850.0,0.08358412]
[1754249043633,0.60982865,114860.0,114850.0,0.17221696]
[1754249044098,0.59619526,114870.0,114850.0,0.17221696]
[1754249044365,0.59619526,114870.0,114860.0,0.1346]
[1754249044591,0.59619526,114870.0,114860.0,0.1618307]
[1754249045162,0.42238145,114880.0,114860.0,0.1618307]
[1754249045378,0.59619526,114870.0,114860.0,0.25361354]
[1754249045649,0.59820526,114870.0,114860.0,0.22528284]
[1754249045857,0.59820526,114870.0,114860.0,0.22524284]
[1754249046068,0.59820526,114870.0,114860.0,0.28805284]
[1754249046516,0.60141526,114870.0,114860.0,0.13456]
[1754249046724,0.03459,114870.0,114860.0,0.13456]
[1754249046937,0.99553251,114870.0,114860.0,0.13556]
[1754249047142,1.75318093,114870.0,114860.0,0.13556]
[1754249047358,1.73887213,114870.0,114860.0,0.13556]
[1754249047563,1.73887213,114870.0,114860.0,0.001]
[1754249047781,1.73887213,114870.0,114860.0,0.13556]
[1754249048197,1.73887213,114870.0,114860.0,0.13552]
[1754249048401,0.34,114860.0,114850.0,0.02699056]
[1754249048610,1.68069326,114860.0,114850.0,0.16151056]
[1754249048830,1.71327326,114860.0,114850.0,0.16151056]
[1754249050099,1.72690548,114860.0,114850.0,0.16151056]
[1754249050506,1.72690548,114860.0,114850.0,0.15351056]
[1754249051513,1.72690548,114860.0,114850.0,0.01899056]
[1754249051713,1.72690548,114860.0,114850.0,0.15343056]
[1754249051916,1.72690548,114860.0,114850.0,0.13444]
[1754249052329,0.742488,114850.0,114840.0,0.06281]
[1754249052534,0.59824526,114850.0,114840.0,0.23368294]
[1754249053683,0.60221526,114850.0,114840.0,0.23368294]
[1754249053950,0.60221526,114850.0,114840.0,0.2239298]
[1754249055652,0.60221526,114850.0,114840.0,0.2189298]
[1754249057215,0.60221526,114850.0,114840.0,0.2188498]
[1754249058178,1.23289052,114850.0,114840.0,0.1609998]
[1754249058397,0.63669526,114850.0,114840.0,0.15289774]
[1754249058607,1.37918326,114850.0,114840.0,0.15289774]
[1754249059048,1.71918326,114850.0,114840.0,0.15289774]
[1754249059702,1.73281656,114850.0,114840.0,0.15289774]
[1754249060919,1.73281656,114850.0,114840.0,0.17469351]
[1754249061324,1.73281656,114850.0,114840.0,0.15289774]
[1754249062677,1.73281656,114850.0,114840.0,0.14789774]
[1754249064245,2.34646084,114850.0,114840.0,0.01357774]
[1754249064461,2.34646084,114850.0,114840.0,0.14789774]
[1754249064713,2.34646084,114850.0,114840.0,0.13479495]
[1754249065374,1.11959032,114850.0,114840.0,0.00595445]
[1754249065617,0.95082856,114850.0,114840.0,0.20471]
[1754249065841,0.93719526,114850.0,114840.0,0.23118165]
[1754249066291,0.341,114850.0,114840.0,0.23118165]
[1754249066526,0.93719526,114850.0,114840.0,0.23118165]
[1754249066756,0.93924526,114850.0,114840.0,0.23118165]
[1754249066946,0.93924526,114850.0,114840.0,0.22800165]
[1754249068942,0.95287826,114850.0,114840.0,0.22800165]
[1754249069798,0.95584826,114850.0,114840.0,0.22300165]
[1754249071786,2.32791152,114850.0,114840.0,0.15794165]
[1754249071998,1.73171626,114850.0,114840.0,0.15794165]
[1754249072651,1.39071626,114850.0,114840.0,0.14994165]
[1754249073255,1.35733626,114850.0,114840.0,0.17144182]
[1754249073786,1.39071626,114850.0,114840.0,0.14994165]
[1754249075626,1.98691152,114850.0,114840.0,0.14994165]
[1754249076762,1.98691152,114850.0,114840.0,0.14494165]
[1754249077161,1.97327852,114850.0,114840.0,0.14494165]
[1754249077362,1.37708326,114850.0,114840.0,0.14494165]
[1754249077998,1.73644252,114850.0,114840.0,0.11847]
[1754249078213,1.75594154,114850.0,114840.0,0.11847]
[1754249078414,1.78213454,114850.0,114840.0,0.11847]
[1754249078798,2.130306,114850.0,114840.0,0.11847]
[1754249079000,2.130306,114850.0,114830.0,0.06506]
[1754249079202,1.19467912,114840.0,114830.0,0.06553536]
[1754249079440,1.19444052,114840.0,114830.0,0.19965536]
[1754249079644,1.19444052,114840.0,114830.0,0.22069326]
[1754249079870,1.53444052,114840.0,114830.0,0.24983378]
[1754249080106,0.35568412,114840.0,114830.0,0.24983378]
[1754249080341,1.54807464,114840.0,114830.0,0.25198378]
[1754249081212,1.54807464,114840.0,114830.0,0.25298378]
[1754249081440,1.54807464,114840.0,114830.0,0.22384326]
[1754249081889,1.54807464,114840.0,114830.0,0.08972326]
[1754249082118,1.54807464,114840.0,114830.0,0.22380326]
[1754249083113,1.54807464,114840.0,114830.0,0.22280326]
[1754249083767,1.54807464,114840.0,114830.0,0.21780326]
[1754249083942,1.54807464,114840.0,114830.0,0.24665478]
[1754249084539,0.35568412,114840.0,114830.0,0.24665478]
[1754249084753,1.54807464,114840.0,114830.0,0.24665478]
[1754249086545,1.54807464,114840.0,114830.0,0.21780326]
[1754249086736,1.54807464,114840.0,114830.0,0.20980326]
[1754249090880,1.54807464,114840.0,114830.0,0.20480326]
[1754249091571,0.01363412,114840.0,114830.0,0.20480326]
[1754249092019,0.59619526,114850.0,114830.0,0.20480326]
[1754249092241,0.59619526,114850.0,114830.0,0.23235478]
[1754249092462,0.59619526,114850.0,114840.0,0.00312]
[1754249092681,0.93619526,114850.0,114840.0,0.00526]
[1754249092899,0.93619526,114850.0,114840.0,0.07368]
[1754249093897,0.93619526,114850.0,114840.0,0.06782]
[1754249094356,0.93619526,114850.0,114840.0,0.09339848]
[1754249094672,0.94982742,114850.0,114840.0,0.09339848]
[1754249095817,0.94982742,114850.0,114840.0,0.09651848]
[1754249098621,0.94982742,114850.0,114840.0,0.09151848]
[1754249100256,0.34,114840.0,114830.0,0.00147536]
[1754249100458,0.34,114840.0,114830.0,0.13523536]
[1754249100459,2.6588468,114840.0,114830.0,0.13523536]
[1754249100766,2.7878554,114840.0,114830.0,0.13523536]
[1754249101185,2.87669296,114840.0,114790.0,0.0949596]
[1754249101240,0.34,114810.0,114780.0,0.27778]
[1754249101511,0.34,114810.0,114790.0,0.13435661]
[1754249101512,0.93848386,114800.0,114790.0,0.13435661]
[1754249101772,1.00772526,114800.0,114790.0,0.13435661]
[1754249101984,1.04388227,114800.0,114790.0,0.13435661]
[1754249102200,1.00772526,114800.0,114790.0,0.04468208]
[1754249102427,0.94129526,114800.0,114790.0,0.06889661]
[1754249102662,0.94129526,114800.0,114790.0,0.20281661]
[1754249103339,0.94129526,114800.0,114790.0,0.20495661]
[1754249103574,0.95197345,114800.0,114790.0,0.20807661]
[1754249104482,0.94983345,114800.0,114790.0,0.20007661]
[1754249104689,0.94983345,114800.0,114790.0,0.22715547]
[1754249105777,0.95197345,114800.0,114790.0,0.08823547]
[1754249105960,0.95197345,114800.0,114790.0,0.19187661]
[1754249106472,0.95297345,114800.0,114790.0,0.19187661]
[1754249106901,0.93933526,114800.0,114790.0,0.05803661]
[1754249107160,0.93933526,114800.0,114790.0,0.19187661]
[1754249107381,1.60492052,114800.0,114790.0,0.13384]
[1754249107571,1.60492052,114800.0,114790.0,0.1338]
[1754249108237,1.60492052,114800.0,114780.0,0.06842]
[1754249108448,0.41300503,114800.0,114790.0,0.13392]
[1754249108657,1.60539555,114800.0,114790.0,0.13392]
[1754249109122,1.60539555,114800.0,114790.0,0.13396]
[1754249109356,1.60439555,114800.0,114790.0,0.13396]
[1754249109932,1.61803387,114800.0,114790.0,0.13396]
[1754249110205,1.61803387,114800.0,114790.0,0.13796]
[1754249110584,1.02183861,114800.0,114790.0,0.13796]
[1754249111026,1.61803387,114800.0,114790.0,0.13796]
[1754249111383,1.02183861,114800.0,114790.0,0.13896]
[1754249112021,1.02183861,114800.0,114790.0,0.005]
[1754249112230,1.02183861,114800.0,114790.0,0.13092]
[1754249112461,1.61803387,114800.0,114790.0,0.13092]
[1754249112677,1.61803387,114800.0,114790.0,0.12592]
[1754249113324,1.02183861,114800.0,114790.0,0.12592]
[1754249114030,1.02183861,114800.0,114780.0,0.096514]
[1754249114216,1.02183861,114800.0,114790.0,0.13396]
[1754249114440,1.61803387,114800.0,114780.0,0.099464]
[1754249114740,0.59619526,114790.0,114780.0,0.099464]
[1754249114943,0.59619526,114790.0,114780.0,0.20743]
[1754249115713,0.59619526,114790.0,114780.0,0.07347]
[1754249115918,0.59833526,114790.0,114780.0,0.07347]
[1754249116290,0.59833526,114790.0,114780.0,0.20739]
[1754249116505,0.59833526,114790.0,114780.0,0.20839]
[1754249116731,0.59933526,114790.0,114780.0,0.20839]
[1754249117689,0.37504024,114790.0,114780.0,0.095309]
[1754249117908,0.52680473,114790.0,114780.0,0.001]
[1754249118110,2.01277474,114790.0,114780.0,0.001]
[1754249118293,2.03898374,114790.0,114780.0,0.13496]
[1754249119151,0.510672,114760.0,114740.0,0.0682]
[1754249119357,0.94062386,114750.0,114740.0,0.019764]
[1754249119561,1.01876624,114750.0,114740.0,0.13396]
[1754249119805,1.52943824,114750.0,114740.0,0.12896]
[1754249120017,1.52634824,114750.0,114740.0,0.12896]
[1754249120391,1.54046781,114750.0,114740.0,0.12896]
[1754249120593,1.47336781,114750.0,114740.0,0.216026]
[1754249120805,1.47336781,114750.0,114740.0,0.224016]
[1754249120952,1.47336781,114750.0,114740.0,0.090016]
[1754249121170,1.47336781,114750.0,114740.0,0.20135]
[1754249121585,1.47336781,114750.0,114740.0,0.2043]
[1754249122016,1.47336781,114750.0,114740.0,0.20135]
[1754249122223,1.47336781,114750.0,114740.0,0.06735]
[1754249122438,1.47336781,114750.0,114740.0,0.20131]
[1754249122649,1.47336781,114750.0,114740.0,0.224736]
[1754249123098,1.47336781,114750.0,114740.0,0.20431]
[1754249123541,1.47336781,114750.0,114740.0,0.07035]
[1754249123722,1.47336781,114750.0,114740.0,0.20431]
[1754249125104,0.61031483,114750.0,114740.0,0.20726]
[1754249125356,0.93666999,114750.0,114740.0,0.227986]
[1754249126216,0.93666999,114750.0,114740.0,0.227906]
[1754249126617,0.93666999,114750.0,114740.0,0.219906]
[1754249127111,0.93666999,114750.0,114740.0,0.214906]
[1754249127538,0.00047473,114750.0,114740.0,0.30353884]
[1754249128468,0.00047473,114750.0,114740.0,0.32853884]
[1754249129451,0.00047473,114750.0,114740.0,0.32553884]
[1754249129705,0.00047473,114750.0,114740.0,0.19165884]
[1754249129915,0.59666999,114750.0,114740.0,0.49545284]
[1754249130780,0.59880999,114750.0,114740.0,0.0573]
[1754249130998,0.59880999,114750.0,114740.0,0.18843]
[1754249131220,0.61245357,114750.0,114740.0,0.18843]
[1754249132068,0.61245357,114750.0,114740.0,0.19143]
[1754249132284,0.01411831,114750.0,114740.0,0.32310284]
[1754249132489,0.01411831,114750.0,114740.0,0.32210284]
[1754249133406,0.01411831,114750.0,114740.0,0.32310284]
[1754249133625,0.01411831,114750.0,114740.0,0.18102284]
[1754249133823,0.01411831,114750.0,114740.0,0.31510284]
[1754249133957,0.01411831,114750.0,114740.0,0.31010284]
[1754249136707,0.01411831,114750.0,114740.0,0.31002284]
[1754249137163,0.61031357,114750.0,114740.0,0.26993284]
[1754249137733,0.01411831,114750.0,114740.0,0.26993284]
[1754249140208,0.67955357,114750.0,114740.0,0.003]
[1754249140422,0.66590999,114750.0,114740.0,0.003]
[1754249140640,0.66590999,114750.0,114740.0,0.13696]
[1754249140815,0.66892999,114750.0,114740.0,0.12896]
[1754249141073,1.00892999,114750.0,114740.0,0.13404]
[1754249141290,1.01503973,114750.0,114740.0,0.12904]
[1754249141487,1.01503973,114750.0,114740.0,0.13004]
[1754249141817,1.01503973,114750.0,114740.0,0.001]
[1754249142029,1.01503973,114750.0,114740.0,0.002]
[1754249142270,1.01503973,114750.0,114740.0,0.136]
[1754249143243,1.02868375,114750.0,114740.0,0.136]
[1754249143683,1.02868375,114750.0,114740.0,0.13596]
[1754249145315,1.02868375,114750.0,114740.0,0.002]
[1754249145523,1.02868375,114750.0,114740.0,0.13596]
[1754249145931,1.02566375,114750.0,114740.0,0.13596]
[1754249146336,1.02566375,114750.0,114740.0,0.156376]
[1754249147304,0.42946849,114750.0,114740.0,0.156376]
[1754249147527,0.02022849,114750.0,114740.0,0.224546]
[1754249147809,0.00658447,114750.0,114740.0,0.9013741]
[1754249148083,0.00047473,114750.0,114740.0,0.30517884]
[1754249148367,0.00047473,114750.0,114740.0,0.30017884]
[1754249148589,0.00047473,114750.0,114740.0,0.31121884]
[1754249148962,0.00047473,114750.0,114740.0,0.29080284]
[1754249154875,0.00047473,114750.0,114740.0,0.28280284]
[1754249155113,0.00047473,114750.0,114740.0,0.28495284]
[1754249156014,0.00263473,114750.0,114730.0,0.2632]
[1754249156242,0.00047473,114750.0,114740.0,0.13607]
[1754249156465,0.00047473,114750.0,114740.0,0.20889228]
[1754249156659,0.00047473,114750.0,114740.0,0.20389228]
[1754249156882,1.20984768,114770.0,114740.0,0.26683228]
[1754249157099,0.71516465,114770.0,114740.0,0.26687964]
[1754249157318,0.71516465,114770.0,114750.0,0.06294]
[1754249157538,0.00216,114760.0,114750.0,0.08962796]
[1754249157738,0.00216,114760.0,114750.0,0.1969]
[1754249158070,0.49252986,114770.0,114750.0,0.1969]
[1754249158266,0.70068568,114760.0,114750.0,0.19998]
[1754249159124,0.70168568,114760.0,114750.0,0.13396]
[1754249159338,0.76443862,114760.0,114750.0,0.13392]
[1754249160021,1.27606062,114760.0,114750.0,0.13392]
[1754249160730,1.27706062,114760.0,114750.0,0.13392]
[1754249161118,1.10638862,114760.0,114750.0,0.13392]
[1754249161337,1.61706062,114760.0,114750.0,0.13392]
[1754249161690,1.61706062,114760.0,114740.0,0.06606736]
[1754249161886,0.510672,114750.0,114740.0,0.07353738]
[1754249162109,0.00216,114750.0,114740.0,0.20741738]
[1754249162949,0.510672,114750.0,114740.0,0.20956738]
[1754249163500,0.01464294,114760.0,114740.0,0.29820022]
[1754249163689,0.01364294,114760.0,114750.0,0.08863284]
[1754249163905,0.01464294,114760.0,114750.0,0.11787613]
[1754249164353,0.01364294,114760.0,114750.0,0.11787613]
[1754249165471,0.01364294,114760.0,114750.0,0.11887613]
[1754249165690,0.01364294,114760.0,114750.0,0.18181613]
[1754249167040,0.01364294,114760.0,114750.0,0.18381613]
[1754249167579,0.34,114770.0,114750.0,0.18381613]
[1754249167708,0.34,114770.0,114760.0,0.134]
[1754249167910,0.34216,114770.0,114760.0,0.19694]
[1754249168949,0.34216,114770.0,114760.0,0.18894]
[1754249170001,0.34216,114770.0,114760.0,0.24572661]
[1754249170907,0.35580233,114770.0,114760.0,0.24279661]
[1754249173878,0.95228517,114770.0,114760.0,0.24279661]
[1754249174709,0.95228517,114770.0,114760.0,0.18601]
[1754249175355,0.93864284,114770.0,114760.0,0.18601]
[1754249175562,0.34216,114770.0,114760.0,0.18601]
[1754249175773,0.93864284,114770.0,114760.0,0.18601]
[1754249176208,0.93864284,114770.0,114760.0,0.17801]
[1754249177566,0.93864284,114770.0,114760.0,0.23370361]
[1754249177967,0.93864284,114770.0,114760.0,0.22870361]
[1754249178745,0.95228513,114770.0,114760.0,0.22870361]
[1754249180232,0.35580229,114770.0,114760.0,0.22870361]
[1754249180467,0.95228513,114770.0,114760.0,0.22870361]
[1754249181329,0.95228513,114770.0,114760.0,0.176]
[1754249183115,0.95228513,114770.0,114760.0,0.168]
[1754249185170,0.95228513,114770.0,114760.0,0.163]
[1754249186040,0.35580229,114770.0,114760.0,0.163]
[1754249186248,0.95228513,114770.0,114760.0,0.163]
[1754249186867,0.95228513,114770.0,114760.0,0.16001]
[1754249187086,0.95228513,114770.0,114760.0,0.21389461]
[1754249187826,0.93864284,114770.0,114760.0,0.21389461]
[1754249188028,0.93864284,114770.0,114760.0,0.16001]
[1754249189785,0.93864284,114770.0,114760.0,0.18675387]
[1754249190231,0.34,114770.0,114760.0,0.18174387]
[1754249191362,0.34214,114770.0,114760.0,0.18174387]
[1754249191984,0.34214,114770.0,114760.0,0.17674387]
[1754249192191,0.3557821,114770.0,114760.0,0.17674387]
[1754249193898,0.3557821,114770.0,114760.0,0.23200287]
[1754249195194,0.0157821,114770.0,114760.0,0.23200287]
[1754249197319,0.0157821,114770.0,114760.0,0.22400287]
[1754249198206,0.0136421,114770.0,114760.0,0.22400287]
[1754249199205,0.0136421,114770.0,114760.0,0.21900287]
[1754249199404,0.510672,114770.0,114760.0,0.21900287]
[1754249199604,0.00214,114770.0,114760.0,0.21900287]
[1754249199804,0.59862284,114770.0,114760.0,0.21900287]
[1754249200682,0.59862284,114770.0,114760.0,0.09574387]
[1754249200891,0.66207284,114770.0,114760.0,0.09574387]
[1754249201077,0.59862284,114770.0,114760.0,0.16230387]
[1754249202343,0.61226508,114770.0,114760.0,0.16230387]
[1754249203674,0.61226508,114770.0,114760.0,0.09574387]
[1754249203888,0.61226508,114770.0,114760.0,0.16230387]
[1754249204095,0.01578224,114770.0,114760.0,0.16230387]
[1754249204308,0.61226508,114770.0,114760.0,0.16230387]
[1754249204519,0.61226508,114770.0,114760.0,0.15430387]
[1754249206065,0.59862284,114770.0,114760.0,0.15430387]
[1754249206254,0.59862284,114770.0,114760.0,0.14930387]
[1754249208139,0.59862284,114770.0,114760.0,0.20213887]
[1754249209375,0.61226505,114770.0,114760.0,0.20213887]
[1754249209582,0.61226505,114770.0,114760.0,0.14930387]
[1754249210328,0.01578221,114770.0,114760.0,0.14930387]
[1754249210516,0.61226505,114770.0,114760.0,0.14930387]
[1754249211528,0.61226505,114770.0,114760.0,0.14130387]
[1754249212398,0.59648284,114770.0,114760.0,0.19653887]
[1754249212607,0.59729284,114770.0,114760.0,0.19653887]
[1754249213313,0.59729284,114770.0,114760.0,0.19153887]
[1754249214572,0.00081,114770.0,114760.0,0.19153887]
[1754249214775,0.59729284,114770.0,114760.0,0.19355887]
[1754249215005,0.41402224,114780.0,114760.0,0.19355887]
[1754249215006,0.95012508,114780.0,114760.0,0.15055887]
[1754249215212,0.510672,114770.0,114760.0,0.21443887]
[1754249215841,0.510672,114770.0,114760.0,0.21763887]
[1754249216452,0.510672,114770.0,114760.0,0.28419887]
[1754249218159,0.510672,114770.0,114760.0,0.23216387]
[1754249218654,0.510672,114770.0,114760.0,0.22416387]
[1754249219058,0.575132,114770.0,114760.0,0.13364]
[1754249219273,0.06446,114770.0,114760.0,0.13566]
[1754249219488,0.06446,114770.0,114760.0,0.149226]
[1754249219709,0.00209,114770.0,114760.0,0.149226]
[1754249220345,0.00209,114770.0,114760.0,0.144226]
[1754249221180,0.00209,114770.0,114760.0,0.210786]
[1754249221895,0.00084,114770.0,114760.0,0.213986]
[1754249222523,1.02485681,114780.0,114760.0,0.23964757]
[1754249222717,0.510672,114770.0,114760.0,0.23964757]
[1754249224738,1.18164896,114770.0,114760.0,0.23964757]
[1754249224945,0.67097696,114770.0,114760.0,0.23964757]
[1754249225706,0.67097696,114770.0,114760.0,0.23164757]
[1754249227412,0.67097696,114770.0,114760.0,0.22664757]
[1754249227654,0.44221716,114780.0,114760.0,0.22664757]
[1754249227845,0.67097696,114770.0,114760.0,0.22664757]
[1754249230164,0.73543696,114770.0,114760.0,0.22664757]
[1754249232548,0.73850696,114770.0,114760.0,0.14130157]
[1754249233837,0.73850696,114770.0,114760.0,0.13330157]
[1754249234704,0.73850696,114770.0,114760.0,0.12830157]
[1754249239326,0.73850696,114770.0,114760.0,0.02566157]
[1754249239560,0.73850696,114770.0,114760.0,0.15926157]
[1754249239772,0.73850696,114770.0,114750.0,0.06789]
[1754249239968,0.06753,114770.0,114760.0,0.1336]
[1754249240177,0.73850696,114770.0,114760.0,0.1336]
[1754249240571,0.06753,114770.0,114760.0,0.1336]
[1754249240738,0.73850696,114770.0,114760.0,0.1336]
[1754249240968,0.73850696,114770.0,114760.0,0.1256]
[1754249241167,0.73850696,114770.0,114760.0,0.15186769]
[1754249241631,0.73850696,114770.0,114760.0,0.15486769]
[1754249242644,0.510672,114760.0,114740.0,0.10299]
[1754249242847,1.34391392,114750.0,114740.0,0.16492]
[1754249243205,0.74537696,114750.0,114740.0,0.29848]
[1754249243478,0.0744,114750.0,114740.0,0.16492]
[1754249243689,0.74537696,114750.0,114740.0,0.23357]
[1754249244465,0.74537696,114750.0,114740.0,0.23457]
[1754249244903,0.74537696,114750.0,114740.0,0.23357]
[1754249245319,0.0744,114750.0,114740.0,0.265716]
[1754249245521,0.74537696,114750.0,114740.0,0.265716]
[1754249245721,0.74537696,114750.0,114740.0,0.268716]
[1754249246358,0.74537696,114750.0,114740.0,0.267466]
[1754249246851,0.77175958,114750.0,114740.0,0.23732]
[1754249247077,0.77175958,114750.0,114740.0,0.13856]
[1754249247778,0.77175958,114750.0,114740.0,0.005]
[1754249247989,1.44273654,114750.0,114730.0,0.16365]
[1754249248193,0.77175958,114750.0,114740.0,0.13356]
[1754249248777,0.77175958,114750.0,114740.0,0.12856]
[1754249249541,0.58373205,114750.0,114740.0,0.12856]
[1754249249743,0.59933622,114750.0,114740.0,0.19347]
[1754249251408,0.62558844,114750.0,114740.0,0.19347]
[1754249251621,0.71283335,114750.0,114740.0,0.22490194]
[1754249252480,0.01560417,114750.0,114740.0,0.22490194]
[1754249252687,0.68658113,114750.0,114740.0,0.22697194]
[1754249253583,0.68658113,114750.0,114740.0,0.22995194]
[1754249255020,0.68658113,114750.0,114740.0,0.22195194]
[1754249255833,0.68658113,114750.0,114740.0,0.21695194]
[1754249257640,0.67293696,114750.0,114740.0,0.21695194]
[1754249257887,0.00196,114750.0,114740.0,0.21695194]
[1754249258097,0.76193496,114760.0,114740.0,0.21695194]
[1754249258303,0.510672,114750.0,114740.0,0.15204194]
[1754249258920,0.510672,114750.0,114740.0,0.21695194]
[1754249259978,0.8474978,114760.0,114740.0,0.21695194]
[1754249260183,0.30209,114750.0,114740.0,0.21895194]
[1754249260975,0.30209,114750.0,114740.0,0.21995194]
[1754249262102,0.1,114750.0,114740.0,0.21195194]
[1754249262266,0.86114207,114760.0,114740.0,0.21195194]
[1754249262515,0.1,114750.0,114740.0,0.21195194]
[1754249262907,0.1,114750.0,114740.0,0.20695194]
[1754249263117,0.1,114750.0,114740.0,0.8769289]
[1754249263959,0.1,114750.0,114740.0,0.20595194]
[1754249264397,0.1,114750.0,114740.0,0.20695194]
[1754249265382,0.55567859,114760.0,114740.0,0.20695194]
[1754249265584,0.55567859,114760.0,114750.0,0.06636]
[1754249265787,0.55772859,114760.0,114750.0,0.08720019]
[1754249268970,0.62086859,114760.0,114740.0,0.20333194]
[1754249269186,0.62086859,114760.0,114740.0,0.19533194]
[1754249270465,0.42266243,114760.0,114740.0,0.19533194]
[1754249270872,0.73616696,114760.0,114740.0,0.19033194]
[1754249271292,0.06519,114760.0,114740.0,0.19033194]
[1754249271503,0.73616696,114760.0,114740.0,0.19033194]
[1754249271957,0.73616696,114760.0,114740.0,0.8613089]
[1754249272160,0.73926696,114760.0,114740.0,0.8613089]
[1754249276290,0.73926696,114760.0,114740.0,0.8533089]
[1754249278048,0.73926696,114760.0,114740.0,0.8483089]
[1754249278287,0.06829,114760.0,114740.0,0.17733194]
[1754249278507,0.06829,114760.0,114740.0,0.81687696]
[1754249278951,0.73926696,114760.0,114740.0,0.81687696]
[1754249279395,0.06829,114760.0,114740.0,0.81687696]
[1754249279599,0.73926696,114760.0,114740.0,0.81687696]
[1754249279996,0.06829,114760.0,114740.0,0.1459]
[1754249280192,0.73926696,114760.0,114740.0,0.83148119]
[1754249280390,0.73926696,114760.0,114740.0,0.16050423]
[1754249280754,0.06829,114760.0,114740.0,0.83148119]
[1754249280942,0.73926696,114760.0,114740.0,0.83148119]
[1754249283110,0.76547596,114760.0,114740.0,0.83148119]
[1754249283338,0.76547596,114760.0,114740.0,0.82348119]
[1754249284433,0.69923596,114760.0,114750.0,0.06636]
[1754249284661,0.028259,114760.0,114750.0,0.13126432]
[1754249284842,0.69923596,114760.0,114750.0,0.13126432]
[1754249285107,0.69923596,114760.0,114750.0,0.12626432]
[1754249285824,0.028259,114760.0,114750.0,0.12626432]